Cogmind - Beta 10.1 @@@ ROGUE MODE // 2020.09.28 @ 18:51:03 Player: Calanor Result: Destroyed by D-53 Grenadier with Mini Grenade Launcher Performance ------------- Evolutions (0) 0 Regions Visited (4) 800 Robots Destroyed (32) 160 Value Destroyed (631) 631 Prototype IDs (27) 540 Alien Tech Used (0) 0 Bonus (360) 360 TOTAL SCORE: 2491 Bonus ------- Follower Combat Kills 60 Aligned with FarCom 300 Cogmind --------- Core Integrity 0/250 Matter 232/300 Energy 100/100 System Corruption 0% Temperature Cool (0) Movement Rolling (100) Location -9/Mines Parts ------- > --- POWER (1) -------- (None) > --- PROPULSION (2) --- Compact Wheel Compact Wheel > --- UTILITY (2) ------ Large Storage Unit > --- WEAPON (2) ------- Grenade Launcher > --- INVENTORY (10) --- Light Ion Engine Improved Heat Sink High-capacity Storage Unit Experimental Sensor Array Signal Interpreter Heavy EM Pulse Gun Improved Light Cannon Improved Light Cannon Slug Cannon Datajack Peak State ------------ > --- POWER ------------ Ion Engine > --- PROPULSION ------- Compact Wheel Compact Wheel > --- UTILITY ---------- Large Storage Unit Experimental Sensor Array > --- WEAPON ----------- Firepult > --- INVENTORY -------- Light Ion Engine Improved Heat Sink Large Storage Unit High-capacity Storage Unit Signal Interpreter Heavy EM Pulse Gun Grenade Launcher Rocket Launcher Datajack [Rating: 31] Favorites ----------- Power Ion Engine Engine Ion Engine Propulsion Compact Wheel Wheel Compact Wheel Utility Large Storage Unit Device Improved Heat Sink Storage Large Storage Unit Weapon Improved Light Cannon Energy Gun Heavy EM Pulse Gun Energy Cannon Firepult Ballistic Gun Assault Rifle Ballistic Cannon Improved Light Cannon Launcher Rocket Launcher Special Weapon Plasma Cutter Build | -11 -10 -10 -10 -9 ------- Run | Scr Mat Min Exi Min Slots Evolved . | . . . . . Power . | . . . . . Propulsion . | . . . . . Utility . | . . . . . Weapon . | . . . . . Parts Attached 37 | 6 15 7 6 3 Power 4 | 1 3 . . . Engine 4 | 1 3 . . . Core . | . . . . . Reactor . | . . . . . Propulsion 5 | 2 2 1 . . Treads . | . . . . . Leg . | . . . . . Wheel 5 | 2 2 1 . . Hover . | . . . . . Flight . | . . . . . Utility 8 | 1 3 1 3 . Device 5 | . 2 1 2 . Storage 3 | 1 1 . 1 . Processor . | . . . . . Hackware . | . . . . . Protection . | . . . . . Artifact . | . . . . . Weapon 20 | 2 7 5 3 3 Energy Gun 7 | . 6 1 . . Energy Cannon 1 | . . . 1 . Ballistic Gun 2 | 2 . . . . Ballistic Cannon 6 | . . 3 2 1 Launcher 3 | . . 1 . 2 Special Weapon 1 | . 1 . . . Impact Weapon . | . . . . . Slashing Weapon . | . . . . . Piercing Weapon . | . . . . . Special Melee Weapon . | . . . . . Unidentified Prototypes 4 | . . 1 3 . Parts Lost 7 | . 2 2 . 3 Power 2 | . 1 . . 1 Propulsion . | . . . . . Utility 1 | . . . . 1 Weapon 4 | . 1 2 . 1 Highest Loss Streak 3 | . 2 1 . 3 Average Slot Usage (%) 98 | . 98 99 99 97 Engine 13 | . 13 14 14 13 Wheel 27 | . 27 28 28 28 Device 13 | . 13 14 14 13 Storage 14 | . 14 14 14 14 Energy Gun 8 | . 20 2 . . Ballistic Gun 2 | . 6 . . . Ballistic Cannon 15 | . . 23 27 25 Naked Turns . | . . . . . Heaviest Build 44 | 13 28 30 44 33 Greatest Support 32 | 26 32 32 32 32 Greatest Overweight (x) 2 | 2 . . 1 1 Average Overweight (x) . | . . . . . Largest Inventory Capacity 10 | 6 10 10 10 10 Average Capacity 9 | 5 9 10 10 10 Most Carried 10 | 4 10 10 10 10 Average Carried 9 | 2 8 9 9 9 Final Capacity 10 | 6 10 10 10 10 Final Carried 10 | 3 10 10 10 10 Class Distribution -------------------- 81% | Mutant 18% | Scavenger-Mutant Dominant Class ---------------- Mutant | -10/Materials Scavenger-Mutant | -10/Mines Mutant | -10/Exiles Mutant | -9/Mines Resources | -11 -10 -10 -10 -9 ----------- Run | Scr Mat Min Exi Min Matter Collected 862 | 203 345 98 . 216 Remotely . | . . . . . Salvage Created 864 | . 691 91 . 82 Parts 57 | . 42 10 . 5 Haulers Intercepted 1 | . 1 . . . Recyclers Shooed . | . . . . . Parts Field Recycled . | . . . . . Retrieved Matter . | . . . . . Parts Self-Destructed . | . . . . . Prevented . | . . . . . Kills | -11 -10 -10 -10 -9 ------- Run | Scr Mat Min Exi Min Combat Hostiles Destroyed 24 | . 15 8 . 1 Guns 17 | . 15 2 . . Cannons 4 | . . 3 . 1 AOE 3 | . . 3 . . Classes Destroyed 7 | . 7 . . . Worker 1 | . 1 . . . Builder 2 | . 1 . . 1 Hauler 1 | . 1 . . . Recycler 1 | . 1 . . . Watcher 3 | . 3 . . . Swarmer 12 | . 6 6 . . Grunt 12 | . 9 2 . 1 Best Kill Streak 6 | . 6 3 . 1 Combat Bots Only 5 | . 5 3 . 1 Max Kills in Single Turn 2 | . 1 2 . 1 Gunslinging . | . . . . . Exploded 2 | . . 2 . . Melee . | . . . . . Uniques/NPCs Destroyed . | . . . . . Combat | -11 -10 -10 -10 -9 -------- Run | Scr Mat Min Exi Min Damage Taken 1094 | . 450 249 . 395 Core 251 | . 86 43 . 122 Absorbed by Shields . | . . . . . Core Remaining (%) 100 | 100 . . . . Volleys Fired 96 | . 62 29 1 4 Largest 2 | . 2 2 2 2 Hottest 90 | . 90 90 78 78 Shots Fired 173 | . 111 52 2 8 Gun 122 | . 106 16 . . Cannon 38 | . . 34 2 2 Launcher 8 | . . 2 . 6 Special 5 | . 5 . . . Kinetic 84 | . 46 34 2 2 Thermal 5 | . 5 . . . Explosive 8 | . . 2 . 6 Electromagnetic 76 | . 60 16 . . Robot Hit Streak 28 | . 28 7 . 8 Robot Miss Streak 6 | . 4 6 . 1 Penetration Max . | . . . . . Secondary Targets . | . . . . . Shots Hit Robots 110 | . 73 30 . 7 Core Hits 50 | . 30 9 . 11 Critical Hits 2 | . 1 . . 1 Critical Kills 1 | . . . . 1 Critical Parts Destroyed 1 | . 1 . . . Melee Attacks . | . . . . . Impact . | . . . . . Slashing . | . . . . . Piercing . | . . . . . Sneak Attacks . | . . . . . Combat Hostiles . | . . . . . Follow-up Attacks . | . . . . . Damage Inflicted 1918 | . 1129 577 . 212 Guns 1086 | . 982 104 . . Cannons 356 | . . 315 . 41 Explosions 476 | . 147 158 . 171 Melee . | . . . . . Ramming . | . . . . . Kinetic 696 | . 340 315 . 41 Thermal 147 | . 147 . . . Explosive 329 | . . 158 . 171 Electromagnetic 746 | . 642 104 . . Impact . | . . . . . Slashing . | . . . . . Piercing . | . . . . . Highest Corruption . | . . . . . Average Corruption . | . . . . . Corruption Purged . | . . . . . Overload Shots . | . . . . . Overflow Damage 47 | . 15 26 . 6 Projectiles 13 | . . 13 . . Explosions 34 | . 15 13 . 6 Melee . | . . . . . Knockbacks 4 | . . 4 . . Impact . | . . . . . Kinetic 4 | . . 4 . . Secondary . | . . . . . Self-Inflicted Damage 55 | . 38 7 . 10 Shots 3 | . 1 1 . 1 Rammed . | . . . . . Targets Rammed . | . . . . . Kicked . | . . . . . Crushed . | . . . . . Highest Temperature 30 | . 16 1 18 30 Average Temperature 6 | . 4 1 12 8 Received Heat Transfer 210 | . 183 15 . 12 Siege Activations . | . . . . . Robots Corrupted . | . . . . . Combat Hostiles . | . . . . . Parts Fried 5 | . 5 . . . Impact Corruptions . | . . . . . Robots Melted . | . . . . . Combat Hostiles . | . . . . . Parts Melted . | . . . . . Heat Transferred 350 | . 350 . . . Parts Sabotaged . | . . . . . Parts Stolen . | . . . . . Parts Stripped . | . . . . . Power Chain Reactions 2 | . 2 . . . Missiles Intercepted . | . . . . . Alert | -11 -10 -10 -10 -9 ------- Run | Scr Mat Min Exi Min Peak Influence 337 | . 337 206 . 81 Initial 41 | . . 41 . . Average 111 | . 147 74 . 75 Maximum Alert Level 1 | . 1 1 . . Low Security (%) 83 | 100 70 97 . 100 Level 1 16 | . 29 2 . . Level 2 . | . . . . . Level 3 . | . . . . . Level 4 . | . . . . . Level 5 . | . . . . . High Security . | . . . . . Max Security . | . . . . . Squads Dispatched 3 | . 3 . . . Investigation 1 | . 1 . . . Extermination . | . . . . . Reinforcement 2 | . 2 . . . Assault . | . . . . . Garrison . | . . . . . Intercept . | . . . . . Construction Impeded . | . . . . . Haulers Reinforced . | . . . . . Stealth | -11 -10 -10 -10 -9 --------- Run | Scr Mat Min Exi Min Distress Signals . | . . . . . Communications Jammed . | . . . . . Distress Signals . | . . . . . Times Spotted 45 | . 28 12 . 5 Peak Tracking Total 5 | . 5 3 . 3 Tactical Retreats 8 | . 4 4 . . Traps | -11 -10 -10 -10 -9 ------- Run | Scr Mat Min Exi Min Traps Triggered 1 | . 1 . . . Indirectly . | . . . . . Trap Hack Attempts . | . . . . . Triggered . | . . . . . Disarmed . | . . . . . Reprogrammed . | . . . . . Reused . | . . . . . Traps Extracted . | . . . . . Installed . | . . . . . Triggered . | . . . . . Machines | -11 -10 -10 -10 -9 ---------- Run | Scr Mat Min Exi Min Machines Disabled 2 | . 1 . 1 . Max in Single Turn 1 | . 1 . 1 . Machines Sabotaged . | . . . . . Garrisons Compromised . | . . . . . Overloaded Fab Kills . | . . . . . Fab Network Shutdowns . | . . . . . Hacking | -11 -10 -10 -10 -9 --------- Run | Scr Mat Min Exi Min Machines Accessed 11 | . 6 . 5 . Terminals 4 | . 4 . . . Fabricators . | . . . . . Repair Stations 1 | . 1 . . . Recycling Units 1 | . 1 . . . Scanalyzers . | . . . . . Garrison Access . | . . . . . Total Hacks 73 | . 23 . 50 . Successful 67 | . 17 . 50 . Failed 6 | . 6 . . . Catastrophic . | . . . . . Database Lockouts . | . . . . . Manual 1 | . . . 1 . Terminals 15 | . 15 . . . Fabricators . | . . . . . Repair Stations 7 | . 7 . . . Recycling Units 1 | . 1 . . . Scanalyzers . | . . . . . Garrison Access . | . . . . . Terminal Hacks 60 | . 10 . 50 . Record 52 | . 3 . 49 . Prototype ID Bank 1 | . 1 . . . Alert Level 1 | . 1 . . . Dispatch Records 1 | . 1 . . . Maintenance Status 1 | . 1 . . . Reinforcement Status 1 | . 1 . . . Registered Prototypes 1 | . 1 . . . Zone Layout 1 | . 1 . . . EX-Prototype ID Bank 1 | . . . 1 . Fabricator Hacks . | . . . . . Repair Station Hacks 6 | . 6 . . . Scan Component 3 | . 3 . . . Repair 3 | . 3 . . . Recycling Unit Hacks 1 | . 1 . . . Report Inventory 1 | . 1 . . . Scanalyzer . | . . . . . Garrison Access Hacks . | . . . . . Unauthorized Hacks . | . . . . . Terminals . | . . . . . Fabricators . | . . . . . Repair Stations . | . . . . . Recycling Units . | . . . . . Scanalyzers . | . . . . . Garrison Access . | . . . . . Data Cores Recovered . | . . . . . Used . | . . . . . Hacking Detections 4 | . 4 . . . Full Trace Events . | . . . . . Feedback Events . | . . . . . Feedback Blocked . | . . . . . Robot Schematics Acquired . | . . . . . Robots Built . | . . . . . Matter . | . . . . . Time . | . . . . . Total Robot Build Rating . | . . . . . Part Schematics Acquired . | . . . . . Parts Built . | . . . . . Matter . | . . . . . Time . | . . . . . Total Part Build Rating . | . . . . . Parts Repaired 3 | . 3 . . . Time 90 | . 90 . . . Parts Recycled . | . . . . . Recycled Matter . | . . . . . Retrieved Matter . | . . . . . Retrieved Components . | . . . . . Parts Scanalyzed . | . . . . . Part Schematics Acquired . | . . . . . Parts Damaged . | . . . . . Bothacking | -11 -10 -10 -10 -9 ------------ Run | Scr Mat Min Exi Min Used RIF Installer . | . . . . . Robots Hacked . | . . . . . Non-combat . | . . . . . Combat . | . . . . . Robot Hacks Applied . | . . . . . Relay Couplers Released . | . . . . . Robots Rewired . | . . . . . Allies Hacked . | . . . . . Hacks Repelled . | . . . . . Allies | -11 -10 -10 -10 -9 -------- Run | Scr Mat Min Exi Min Total Allies 3 | . . 3 . . Largest Group 3 | . . 3 3 3 Highest-Rated Group 40 | . . 40 40 40 Highest-Rated Ally 16 | . . 16 16 16 Total Orders . | . . . . . Ally Attacks 9 | . . . . 9 Total Damage 106 | . . . . 106 Kills 2 | . . . . 2 Allies Corrupted . | . . . . . Allies Melted . | . . . . . Intel | -11 -10 -10 -10 -9 ------- Run | Scr Mat Min Exi Min Robot Analysis Total . | . . . . . Derelict Logs Recovered 2 | . . 1 . 1 Drone Launches . | . . . . . Drone Recoveries . | . . . . . Exploration | -11 -10 -10 -10 -9 ------------- Run | Scr Mat Min Exi Min Turns Passed 3439 | 53 1344 885 849 308 Spaces Moved 2754 | 46 887 733 824 264 Core 21 | 21 . . . . Treads . | . . . . . Legs . | . . . . . Wheels 2733 | 25 887 733 824 264 Hover . | . . . . . Flight . | . . . . . Fastest Speed 50 | 50 90 100 100 100 Average Speed 99 | 77 99 100 100 102 Slowest Speed 150 | 150 100 100 110 110 Overloaded Moves . | . . . . . Propulsion Burnouts . | . . . . . Robots Hopped . | . . . . . Cave-ins Triggered . | . . . . . Exploration Rate (%) 68 | 3 85 99 95 58 Regions Visited 4 Branch Regions 3 Pre-discovered Areas 2 | . . 1 1 . Known Exits Taken . | . . . . . Unknown Exits Taken 4 | 1 1 1 1 . Scrap Searched 4 | . . 1 . 3 Spaces Dug . | . . . . . Terrain Destroyed 61 | . 5 25 . 31 Melee . | . . . . . Projectile 1 | . . 1 . . AOE 60 | . 5 24 . 31 Terrain Rammed . | . . . . . Walls Destroyed . | . . . . . Machines Disabled . | . . . . . Actions | -11 -10 -10 -10 -9 --------- Run | Scr Mat Min Exi Min Total 3269 | 61 1236 831 848 293 Wait 329 | 4 241 59 7 18 Move 2750 | 45 886 732 823 264 Hop . | . . . . . Pick Up 33 | 6 20 3 3 1 Fast Attach 11 | 3 3 . 5 . Attach 9 | 3 3 2 1 . Detach . | . . . . . Swap 17 | . 9 5 . 3 Drop 22 | . 12 1 8 1 Fire 96 | . 62 29 1 4 Melee . | . . . . . Ram . | . . . . . Kick . | . . . . . Crush . | . . . . . Escape Stasis . | . . . . . Rewire 2 | . . . . 2 Trap . | . . . . . Miscellaneous . | . . . . . Route ------- -11/Scrapyard -10/Materials (discovered 4 exits: [*Mat x3] / [*Min]) -10/Mines (discovered 3 exits: [*Mat x2] / *Exi) -10/Exiles (discovered 2 exits: [*Min x2]) -9/Mines (discovered 2 exits: [*Mat x2]) History --------- Turn | Location | Event 32 | -11/Scrapyard | Discovered new exit (range 13) 54 | -11/Scrapyard | Entered Materials 266 | -10/Materials | Discovered new exit (range 16) 297 | -10/Materials | Discovered new exit (range 16) 302 | -10/Materials | Build established: Mutant 674 | -10/Materials | Discovered new exit (range 4) 825 | -10/Materials | Repaired Com. Wheel 858 | -10/Materials | Repaired Hvy. EM Pulse Gun 892 | -10/Materials | Repaired Hvy. EM Pulse Gun 912 | -10/Materials | Discovered new exit (range 15) 1398 | -10/Materials | Entered Mines 1553 | -10/Mines | Received a Rocket Launcher from a helpful Derelict 1559 | -10/Mines | Core integrity fell below 50% 1573 | -10/Mines | Learned location of Storage (-9) 1726 | -10/Mines | Build established: Scavenger-Mutant 1806 | -10/Mines | Learned Materials trap positions 1998 | -10/Mines | Discovered new exit (range 9) 2025 | -10/Mines | Deemed a non-threat by the Exiles lab entrance 2026 | -10/Mines | Discovered new exit (range 5) 2073 | -10/Mines | Discovered new exit (range 6) 2097 | -10/Mines | Found a damaged Exp. Sensor Array with a note attached 2101 | -10/Mines | Found Prototype Device 2102 | -10/Mines | Identified Exp. Sensor Array 2133 | -10/Mines | Assisted by bots powering up and referring to "LRC-V3" 2283 | -10/Mines | Entered Exiles 2283 | -10/Exiles | Accompanied by 3 allies 2322 | -10/Exiles | Met 8R-AWN 2344 | -10/Exiles | Met EX-HEX 2370 | -10/Exiles | Build established: Mutant 2419 | -10/Exiles | Met EX-DEC 2462 | -10/Exiles | Learned location of Zion (-7) 2520 | -10/Exiles | Discovered new exit (range 14) 2597 | -10/Exiles | Met EX-BIN 2642 | -10/Exiles | Aligned with FarCom system 2643 | -10/Exiles | Given EX-Vault access code 2684 | -10/Exiles | Opened EX-Vault 2695 | -10/Exiles | Found Prototype Energy Cannon 2695 | -10/Exiles | Identified Firepult 2698 | -10/Exiles | Found Prototype Device 2699 | -10/Exiles | Identified Trap Reconfigurator 2712 | -10/Exiles | Found Prototype Storage 2712 | -10/Exiles | Identified Superbattery 2760 | -10/Exiles | Warned to stay clear of 0b10 Research branches 2831 | -10/Exiles | Visited The Gauntlet 3078 | -10/Exiles | Discovered new exit (range 15) 3132 | -10/Exiles | Left Exiles lab with Trap Reconfigurator 3132 | -10/Exiles | Entered Mines 3132 | -9/Mines | Accompanied by 3 allies 3157 | -9/Mines | Discovered new exit (range 9) 3168 | -9/Mines | Learned Materials stockpile data 3344 | -9/Mines | A weapon hastily lodged in a ceiling crevice suddenly fell to the ground 3391 | -9/Mines | Discovered new exit (range 5) 3410 | -9/Mines | Assembled infested the area 3433 | -9/Mines | Core integrity fell below 20% 3440 | -9/Mines | Destroyed by D-53 Grenadier with Mini Grenade Launcher Last Messages --------------- 03410_ ALERT: Infestation in the mines, dispatching Demolisher response squad. 03410_ Acquired 53 matter. 03410_ Trooper 1b destroyed. 03411_ Mercenary 1a destroyed. 03413_ U-05 Engineer lays Concrete. 03414_ The unstable cave ceiling collapses. 03414_ U-05 Engineer lays Concrete. 03419_ Destroyed Welding Torch. 03419_ U-05 Engineer destroyed. 03423_ The unstable cave ceiling collapses. 03426_ Ion Engine destroyed. 03426_ Rocket Launcher destroyed. 03427_ The unstable cave ceiling collapses. 03427_ U-05 Engineer lays Concrete. 03428_ Trap Reconfigurator destroyed. 03428_ U-05 Engineer lays Concrete. 03431_ The unstable cave ceiling collapses. 03435_ K-01 Serf destroyed. 03439_ The unstable cave ceiling collapses. Map ----- +----------------------------------------------------+ | ?????????????????????????????????????????????????? | | ?????????????????????????????????????????????????? | | ?????????????????????????????????????????????????? | | ?????????????????????????????????????????????????? | | ?????????????????????????????????????????????????? | | ?????????????????????????????????????????????????? | | ?????????????????????????????????????????????????? | | ?????????????????????????????????????????????????? | | ???????????? ##??????????????????????????????????? | | ??????????? ?????????????????????????????##????? | | ??????????? ?????????????????????????????# ??? | | ?????????? ?????????????????????????????# ???? | | ?????????? #????????????????????????????# ???? | | ??####??? #???????????????????????????# #????? | | ?## #### #????????????????###???????# #?????? | | ## #??????????###""## ##??#### #??????? | | #??????????# X #### #???????? | | ##????????????# ## #????????? | | ### ##?????????????# ##????????? | | ??# #?????????????## ##???????? | | ??# ##????????????## # ##??????? | | ??# #????????????## d# # #??????? | | ??# #???????????## * d #??????? | | ??# #??????????## ###????? | | ??# #??????????# #### #????? | | ??# #??????????# @ #??# # #????? | | ??# #??????????# #??## # #????? | | ??## #?????????## #???## #????? | | ???# #???????### ##???? # #????? | | ???# #??????## ###????# # # #????? | | ???# #####??# t ##?????## ##????? | | ???# #??# #?####### ##?????? | | ???# #??# #??# =% #??????? | | ???##### #?## #???# ##### ??????? | | ???????# ### #????# #???# %< ??????? | | ??????## ## r ###### #???# % #?????? | | ??????# r #???### #?????? | | ??????# ###???### #??????? | | ?????## ###### #?????? ##???????? | | ??#### #####????# #?????????????????? | | ### #????????# ##?????????????????? | | ## #????????## !##??????????????????? | | ## ##### #?????????# #???????????????????? | | ## ##???## ############ #???????????????????? | | ?# #?????####### =#???????????????????? | | ?# #???????????# [#???????????????????? | | ## #?######????# ###########???????????????????? | | # #### ##???# #?????????????????????????????? | | ### ##??# #?????????????????????????????? | | ## #??# #?????????????????????????????? | +----------------------------------------------------+ Best States ------------- Heat Dissipation 39 Energy Generation 10 Energy Capacity 250 Matter Stores 300 Matter Capacity 300 Sight Range 16 Robot Scan Range 30 Terrain Scan Density 10 ECM Strength 1 Evasion (%) 50 Item Schematics ----------------- None Robot Schematics ------------------ None Fabricated ------------ Nothing Alien Tech Used ----------------- None Achievements -------------- None Challenges ------------ None Game ------ Seed IntegratedBombardmentFalx Manual? 0 Play Time 00:56:16 Cumulative 29.6 hours Start 2020.09.28 @ 14:42:25 End 2020.09.28 @ 18:51:03 Sessions 3 Manual Loads 0 Difficulty Rogue Special Mode None Game No. 28 Rogue 28 Adventurer 0 Explorer 0 Win Type - Total 0 Types 0/0/0/0/0/0/0/0/0 Lore% 21 Gallery% 17 Achievement% 16 Wizard Run 0 Options --------- ASCII 0 Keyboard 0 Movement Numpad Keybinds 0 Fullscreen 1 Font 24/Terminus Map View 76x50 Tactical HUD 1 Map Filters NONE Filters NONE Steam 1 RUN: aca83304-27c0-4333-b1da-917d8d87cd44